Cogmind - Beta 13 @@@ ROGUE MODE // 2024.04.18 @ 00:36:14 Player: Person Guy Result: Destroyed by as-57622 with Assembled Blade Performance ------------- Evolutions (3) 1500 Regions Visited (11) 2200 Robots Destroyed (86) 430 Value Destroyed (3824) 3824 Prototype IDs (12) 240 Alien Tech Used (0) 0 Bonus (1950) 1950 TOTAL SCORE: 10144 Bonus ------- High Alert Combat Kills 94 Follower Combat Kills 181 Entered Garrisons 400 Used RIF Installer 1000 Aligned with FarCom 300 Friendly Fire -25 Cogmind --------- Core Integrity 0/700 Matter 134/300 Energy 100/100 System Corruption 20% Temperature Cool (0) Movement Core (50) Location -7/Garrison Parts ------- > --- POWER (1) -------- (None) > --- PROPULSION (3) --- (None) > --- UTILITY (5) ------ (None) > --- WEAPON (4) ------- (None) > --- INVENTORY (5) ---- Large Storage Unit Hacking Suite Relay Coupler [NC] (36) Relay Coupler [Grunt] (40) Remote Datajack Peak State ------------ > --- POWER ------------ Light Angular Momentum Engine > --- PROPULSION ------- Improved Treads Improved Treads Armored Treads > --- UTILITY ---------- Advanced Heat Sink Large Storage Unit Improved Medium Armor Plating Hacking Suite Relay Coupler [NC] > --- WEAPON ----------- Heavy Particle Cannon AWS/Autocannon > --- INVENTORY -------- Light Nuclear Core Heavy Deuterium Engine Improved Treads Improved Heat Sink Large Storage Unit Hacking Suite Relay Coupler [NC] Relay Coupler [NC] Relay Coupler [Grunt] Relay Coupler [Grunt] Relay Coupler [Sentry] Relay Coupler [Hunter] Assault Cannon Improved Grenade Launcher Remote Datajack [Rating: 63] Favorites ----------- Power Ion Engine Engine Ion Engine Power Core Light Nuclear Core Propulsion Improved Treads Treads Improved Treads Leg Improved Aluminum Leg Utility Large Storage Unit Device Advanced Heat Sink Storage Large Storage Unit Hackware Hacking Suite Protection Improved Medium Armor Plating Weapon AWS/Autocannon Energy Gun Medium Laser Energy Cannon Heavy Particle Cannon Ballistic Gun Assault Rifle Ballistic Cannon AWS/Autocannon Launcher Improved Grenade Launcher Build | -11 -10 -10 -9 -9 -9 -8 -8 -8 -8 -7 -7 ------- Run | Yrd Mat Min Mat Min Exi Min Mat Gar Mat Fac Gar Slots Evolved 6 | . . . 2 . . . 2 . . 2 . Power . | . . . . . . . . . . . . Propulsion 1 | . . . 1 . . . . . . . . Utility 3 | . . . . . . . 2 . . 1 . Weapon 2 | . . . 1 . . . . . . 1 . Parts Attached 66 | 1 9 . 17 . 1 . 1 24 2 3 8 Power 6 | . 1 . 1 . 1 . . 1 1 1 . Engine 5 | . 1 . 1 . 1 . . . 1 1 . Core 1 | . . . . . . . . 1 . . . Reactor . | . . . . . . . . . . . . Propulsion 17 | . 3 . 9 . . . . 3 1 . 1 Treads 10 | . 3 . 2 . . . . 3 1 . 1 Leg 7 | . . . 7 . . . . . . . . Wheel . | . . . . . . . . . . . . Hover . | . . . . . . . . . . . . Flight . | . . . . . . . . . . . . Utility 11 | . . . 2 . . . 1 3 . 1 4 Device 3 | . . . 1 . . . . 1 . . 1 Storage 1 | . . . 1 . . . . . . . . Processor . | . . . . . . . . . . . . Hackware 5 | . . . . . . . 1 2 . . 2 Protection 2 | . . . . . . . . . . 1 1 Artifact . | . . . . . . . . . . . . Weapon 32 | 1 5 . 5 . . . . 17 . 1 3 Energy Gun 3 | 1 2 . . . . . . . . . . Energy Cannon 11 | . . . 1 . . . . 8 . 1 1 Ballistic Gun 7 | . 3 . 4 . . . . . . . . Ballistic Cannon 10 | . . . . . . . . 9 . . 1 Launcher 1 | . . . . . . . . . . . 1 Special Weapon . | . . . . . . . . . . . . Impact Weapon . | . . . . . . . . . . . . Slashing Weapon . | . . . . . . . . . . . . Piercing Weapon . | . . . . . . . . . . . . Special Melee Weapon . | . . . . . . . . . . . . Unidentified Prototypes 3 | . . . 1 . . . . 1 . 1 . Parts Lost 18 | . 2 1 . . . . . . . . 15 Power 2 | . 1 . . . . . . . . . 1 Propulsion 6 | . 1 1 . . . . . . . . 4 Utility 7 | . . . . . . . . . . . 7 Weapon 3 | . . . . . . . . . . . 3 Highest Loss Streak 13 | . 2 1 . . . . . . . . 13 To Critical Strikes . | . . . . . . . . . . . . Average Slot Usage (%) 82 | . 84 85 90 100 100 100 88 75 81 80 78 Engine 7 | . 13 14 11 11 11 11 9 3 . 7 6 Core 2 | . . . . . . . . 5 8 . . Treads 19 | . 18 28 3 . . . . 26 27 23 21 Leg 6 | . 9 . 23 33 33 33 27 . . . . Device 6 | . . . 8 11 11 11 9 9 9 7 5 Storage 9 | . 14 14 11 11 11 11 9 9 9 7 6 Hackware 9 | . . . . . . . 7 11 18 15 14 Protection 1 | . . . . . . . . . . 4 6 Energy Gun 2 | . 12 . . . . . . . . . . Energy Cannon 3 | . . . 2 11 11 11 9 5 . 7 4 Ballistic Gun 7 | . 14 28 30 22 22 22 18 . . . . Ballistic Cannon 4 | . . . . . . . . 3 9 7 6 Naked Turns 17 | . . . . . . . . . . . 17 Heaviest Build 105 | 11 14 14 35 35 35 33 33 86 90 105 105 Greatest Support 69 | 20 40 40 39 39 39 39 39 69 69 66 66 Greatest Overweight (x) 1 | . . . 1 . . . . 1 1 1 1 Average Overweight (x) . | . . . . . . . . . 1 1 . Largest Inventory Capacity 15 | 8 8 8 15 15 15 15 15 15 15 15 15 Average Capacity 13 | 8 8 8 14 15 15 15 15 15 15 15 14 Most Carried 15 | 5 8 8 12 13 15 14 15 15 15 15 15 Average Carried 11 | 4 5 8 7 12 12 14 14 11 14 14 13 Final Capacity 15 | 8 8 8 15 15 15 15 15 15 15 15 5 Final Carried 15 | 3 8 8 12 12 14 14 14 15 15 14 5 Class Distribution -------------------- 48% | Bothacker-Skirmisher 28% | Mutant 10% | Gunner 5% | Skirmisher 4% | Scavenger-Gunner Dominant Class ---------------- Mutant | -10/Materials Mutant | -10/Mines Gunner | -9/Materials Gunner | -9/Mines Gunner | -9/Exiles Skirmisher | -8/Mines Skirmisher | -8/Materials Mutant | -8/Garrison Bothacker-Skirmisher | -8/Materials Bothacker-Skirmisher | -7/Factory Bothacker-Skirmisher | -7/Garrison Resources | -11 -10 -10 -9 -9 -9 -8 -8 -8 -8 -7 -7 ----------- Run | Yrd Mat Min Mat Min Exi Min Mat Gar Mat Fac Gar Matter Collected 1365 | 180 191 . 356 18 . 40 . 240 40 30 270 Remotely . | . . . . . . . . . . . . Salvage Created 2929 | . 542 . 470 43 . 41 . 428 481 403 521 Parts 175 | . 35 . 26 6 . 6 . 26 34 26 16 Haulers Intercepted . | . . . . . . . . . . . . Recyclers Shooed . | . . . . . . . . . . . . Parts Field Recycled . | . . . . . . . . . . . . Retrieved Matter . | . . . . . . . . . . . . Parts Self-Destructed . | . . . . . . . . . . . . Prevented . | . . . . . . . . . . . . Kills | -11 -10 -10 -9 -9 -9 -8 -8 -8 -8 -7 -7 ------- Run | Yrd Mat Min Mat Min Exi Min Mat Gar Mat Fac Gar Combat Hostiles Destroyed 143 | . 12 . 10 3 . 3 . 12 15 12 76 Guns 25 | . 12 . 9 2 . 2 . . . . . Cannons 95 | . . . 1 1 . 1 . 12 15 9 56 AOE 23 | . . . . . . . . . . 3 20 Classes Destroyed 11 | . 2 . 3 . . . . 1 3 1 1 Worker 1 | . . . . . . . . . 1 . . Tunneler 1 | . . . . . . . . . . 1 . Recycler 1 | . . . 1 . . . . . . . . Operator 4 | . 3 . . . . . . . 1 . . Watcher 3 | . . . . . . . . . 2 1 . Swarmer 17 | . . . 3 3 . 3 . . 2 3 3 Grunt 42 | . 12 . 4 . . . . 6 7 8 5 Brawler 1 | . . . . . . . . . 1 . . Sentry 12 | . . . 3 . . . . 3 5 . 1 Programmer 4 | . . . . . . . . 3 . 1 . Assembled 67 | . . . . . . . . . . . 67 Best Kill Streak 50 | . 3 . 4 3 . 3 . 4 5 4 50 Combat Bots Only 50 | . 2 . 4 3 . 3 . 4 4 4 50 Max Kills in Single Turn 4 | . 1 . 1 2 . 1 . 1 1 3 4 Gunslinging . | . . . . . . . . . . . . Exploded 4 | . . . . . . . . . . 3 4 Melee . | . . . . . . . . . . . . Uniques/NPCs Destroyed . | . . . . . . . . . . . . Combat | -11 -10 -10 -9 -9 -9 -8 -8 -8 -8 -7 -7 -------- Run | Yrd Mat Min Mat Min Exi Min Mat Gar Mat Fac Gar Hostile Shots Fired 453 | . 93 11 54 7 . 10 . 13 24 14 227 Missed 131 | . 27 . 15 2 . 2 . 4 8 6 67 Damage Taken 4398 | . 795 86 442 45 . 67 . 132 251 127 2453 Core 1032 | . 216 9 53 10 . 17 . 15 . . 712 Absorbed by Shields 65 | . . . . . . . . . . . 65 Core Remaining (%) 71 | 100 . 10 . . . 80 . . 97 . . Volleys Fired 212 | . 76 . 23 3 . 5 . 45 . 2 58 Largest 3 | . 2 . 3 3 . 3 . 1 . 1 2 Hottest 119 | . 70 . 111 111 . 111 . 75 . 75 119 Shots Fired 542 | . 152 . 69 9 . 15 . 70 44 22 161 Gun 233 | . 152 . 65 6 . 10 . . . . . Cannon 285 | . . . 4 3 . 5 . 70 44 22 137 Launcher 24 | . . . . . . . . . . . 24 Special . | . . . . . . . . . . . . Kinetic 358 | . 76 . 65 6 . 10 . 25 44 20 112 Thermal 160 | . 76 . 4 3 . 5 . 45 . 2 25 Explosive 24 | . . . . . . . . . . . 24 Electromagnetic . | . . . . . . . . . . . . Robot Hit Streak 20 | . 10 . 11 1 . 3 . 20 9 7 13 Robot Miss Streak 8 | . 2 . 8 3 . 1 . 1 3 3 3 Penetration Max . | . . . . . . . . . . . . Secondary Targets 4 | . 2 . 2 . . . . . . . . Max Gunslinging Chain 1 | . 1 . 1 . . . . . . . . Autonomous 180 | . . . . . . . . 25 44 20 91 Shots Hit Robots 333 | . 99 . 38 2 . 8 . 23 32 15 116 Core Hits 170 | . 34 . 18 3 . 3 . 11 15 12 74 Critical Kills . | . . . . . . . . . . . . Critical Parts Destroyed . | . . . . . . . . . . . . Critical Strikes 10 | . 1 . . . . . . 1 2 1 5 Burn 1 | . 1 . . . . . . . . . . Blast 9 | . . . . . . . . 1 2 1 5 Melee Attacks . | . . . . . . . . . . . . Impact . | . . . . . . . . . . . . Slashing . | . . . . . . . . . . . . Piercing . | . . . . . . . . . . . . Sneak Attacks . | . . . . . . . . . . . . Combat Hostiles . | . . . . . . . . . . . . Follow-up Attacks . | . . . . . . . . . . . . Damage Inflicted 15771 | . 1051 . 590 43 . 135 . 1903 2722 1586 7741 Guns 1634 | . 1051 . 507 22 . 54 . . . . . Cannons 12438 | . . . 41 21 . 81 . 1903 2722 1298 6372 Explosions 1656 | . . . . . . . . . . 288 1368 Melee . | . . . . . . . . . . . . Ramming 43 | . . . 42 . . . . . . . 1 Kinetic 13010 | . 432 . 507 22 . 54 . 1903 2722 1298 6072 Thermal 1350 | . 619 . 41 21 . 81 . . . 288 300 Explosive 1368 | . . . . . . . . . . . 1368 Electromagnetic . | . . . . . . . . . . . . Impact . | . . . . . . . . . . . . Slashing . | . . . . . . . . . . . . Piercing . | . . . . . . . . . . . . Highest Corruption 20 | . . . . . . . . . 1 . 20 Average Corruption 3 | . . . . . . . . . 1 . 4 Corruption Purged . | . . . . . . . . . . . . Corruption Blocked . | . . . . . . . . . . . . Effects 6 | . . . . . . . . . . . 6 Matter Fused 2 | . . . . . . . . . . . 2 Data Loss (minor) 1 | . . . . . . . . . . . 1 Misdirections 3 | . . . . . . . . . . . 3 Overload Shots . | . . . . . . . . . . . . Overflow Damage 1877 | . . . 5 . . . . 311 279 170 1112 Projectiles 1834 | . . . . . . . . 311 279 170 1074 Explosions 38 | . . . . . . . . . . . 38 Melee 5 | . . . 5 . . . . . . . . Knockbacks 39 | . . . . . . . . 7 7 3 22 Impact . | . . . . . . . . . . . . Kinetic 37 | . . . . . . . . 7 7 3 20 Secondary 2 | . . . . . . . . . . . 2 Self-Inflicted Damage 111 | . . . . . . . . . . . 111 Shots 3 | . . . . . . . . . . . 3 Rammed 1 | . . . . . . . . . . . 1 Targets Rammed 5 | . . . 4 . . . . . . . 1 Kicked 4 | . . . 4 . . . . . . . . Crushed . | . . . . . . . . . . . . Highest Temperature 315 | . 232 . 42 . . . . 25 . . 315 Average Temperature 70 | . 68 . 20 . . . . 16 . . 104 Received Heat Transfer 1094 | . 483 . 192 . . . . 27 81 36 275 Effects 2 | . . . . . . . . . . . 2 Interference 2 | . . . . . . . . . . . 2 Siege Activations . | . . . . . . . . . . . . Robots Corrupted . | . . . . . . . . . . . . Combat Hostiles . | . . . . . . . . . . . . Parts Fried . | . . . . . . . . . . . . Impact Corruptions 2 | . . . 1 . . . . . . . 1 Robots Melted . | . . . . . . . . . . . . Combat Hostiles . | . . . . . . . . . . . . Parts Melted 4 | . 3 . . 1 . . . . . . . Heat Transferred 2730 | . 1887 . 74 37 . 148 . . . 200 384 Parts Sabotaged . | . . . . . . . . . . . . Parts Stolen . | . . . . . . . . . . . . Parts Stripped . | . . . . . . . . . . . . Power Chain Reactions . | . . . . . . . . . . . . Alert | -11 -10 -10 -9 -9 -9 -8 -8 -8 -8 -7 -7 ------- Run | Yrd Mat Min Mat Min Exi Min Mat Gar Mat Fac Gar Peak Influence 953 | . 215 15 288 118 . 70 64 501 392 395 953 Initial 243 | . . 15 1 18 . . 27 41 243 177 217 Average 219 | . 96 14 107 113 . 60 53 266 205 198 678 Maximum Alert Level 3 | . 1 . 1 . . . . 2 1 1 3 Low Security (%) 58 | 100 97 100 90 100 . 100 100 44 37 52 . Level 1 27 | . 2 . 9 . . . . 23 62 47 12 Level 2 7 | . . . . . . . . 31 . . 29 Level 3 5 | . . . . . . . . . . . 58 Level 4 . | . . . . . . . . . . . . Level 5 . | . . . . . . . . . . . . High Security . | . . . . . . . . . . . . Max Security . | . . . . . . . . . . . . Squads Dispatched 8 | . 3 . . . . . . . 2 3 . Investigation 2 | . . . . . . . . . 1 1 . Extermination 1 | . . . . . . . . . . 1 . Reinforcement 5 | . 3 . . . . . . . 1 1 . Assault . | . . . . . . . . . . . . Garrison . | . . . . . . . . . . . . Intercept . | . . . . . . . . . . . . Searches Triggered . | . . . . . . . . . . . . Construction Impeded . | . . . . . . . . . . . . Haulers Reinforced . | . . . . . . . . . . . . Active Scanning Responses . | . . . . . . . . . . . . Cargo Convoy Interrupts . | . . . . . . . . . . . . Stealth | -11 -10 -10 -9 -9 -9 -8 -8 -8 -8 -7 -7 --------- Run | Yrd Mat Min Mat Min Exi Min Mat Gar Mat Fac Gar Distress Signals 6 | . 1 . 2 . . . . . 2 1 . Communications Jammed . | . . . . . . . . . . . . Distress Signals . | . . . . . . . . . . . . Times Spotted 219 | . 42 3 22 3 . 2 2 12 25 16 92 Peak Tracking Total 14 | . 4 3 5 3 . 2 2 5 3 5 14 Tactical Retreats 14 | . . . 1 . . . . 2 4 . 7 Traps | -11 -10 -10 -9 -9 -9 -8 -8 -8 -8 -7 -7 ------- Run | Yrd Mat Min Mat Min Exi Min Mat Gar Mat Fac Gar Traps Triggered 7 | . 1 . . . . . . 4 1 . 1 Indirectly . | . . . . . . . . . . . . Trap Hack Attempts . | . . . . . . . . . . . . Triggered . | . . . . . . . . . . . . Disarmed . | . . . . . . . . . . . . Reprogrammed 6 | . . . . . . . . . . 6 . Reused 1 | . . . . . . . . . . 1 . Traps Extracted . | . . . . . . . . . . . . Installed . | . . . . . . . . . . . . Triggered 1 | . . . . . . . . . . 1 . Machines | -11 -10 -10 -9 -9 -9 -8 -8 -8 -8 -7 -7 ---------- Run | Yrd Mat Min Mat Min Exi Min Mat Gar Mat Fac Gar Machines Disabled 18 | . 1 . . 1 . . . 2 2 9 3 Max in Single Turn 8 | . 1 . . 1 . . . 1 1 8 1 Garrison Relay 3 | . . . . . . . . 2 . . 1 Machines Repaired . | . . . . . . . . . . . . Machines Dismantled . | . . . . . . . . . . . . Machines Sabotaged . | . . . . . . . . . . . . Overloaded Fab Kills . | . . . . . . . . . . . . Hacking | -11 -10 -10 -9 -9 -9 -8 -8 -8 -8 -7 -7 --------- Run | Yrd Mat Min Mat Min Exi Min Mat Gar Mat Fac Gar Machines Accessed 22 | . 4 . 4 . . . 3 1 3 6 1 Terminals 18 | . 4 . 4 . . . 2 1 2 4 1 Fabricators . | . . . . . . . . . . . . Repair Stations . | . . . . . . . . . . . . Recycling Units . | . . . . . . . . . . . . Scanalyzers 2 | . . . . . . . . . 1 1 . Garrison Access 2 | . . . . . . . 1 . . 1 . Total Hacks 55 | . 17 . 9 . . . 5 1 9 12 2 Successful 35 | . 12 . 7 . . . 3 1 6 5 1 Failed 20 | . 5 . 2 . . . 2 . 3 7 1 Catastrophic 5 | . 2 . . . . . . . 1 2 . Database Lockouts . | . . . . . . . . . . . . Manual 17 | . 9 . 3 . 1 . . . 1 3 . Terminals 46 | . 17 . 9 . . . 4 1 5 8 2 Fabricators . | . . . . . . . . . . . . Repair Stations . | . . . . . . . . . . . . Recycling Units . | . . . . . . . . . . . . Scanalyzers 7 | . . . . . . . . . 4 3 . Garrison Access 2 | . . . . . . . 1 . . 1 . Terminal Hacks 26 | . 10 . 6 . . . 2 1 3 3 1 Prototype ID Bank 6 | . 4 . 1 . . . . . 1 . . Level Access Points 3 | . . . 1 . . . . . 1 1 . Branch Access Points 1 | . . . 1 . . . . . . . . Emergency Access Points 4 | . 1 . 1 . . . . 1 . . 1 Alert Level 6 | . 3 . 1 . . . 1 . 1 . . Locate Traps 4 | . 2 . 1 . . . . . . 1 . Reprogram Traps 1 | . . . . . . . . . . 1 . Registered Components 1 | . . . . . . . 1 . . . . Fabricator Hacks . | . . . . . . . . . . . . Repair Station Hacks . | . . . . . . . . . . . . Recycling Unit Hacks . | . . . . . . . . . . . . Scanalyzer 4 | . . . . . . . . . 3 1 . Insert Component 3 | . . . . . . . . . 2 1 . Analyze 1 | . . . . . . . . . 1 . . Garrison Access Hacks 2 | . . . . . . . 1 . . 1 . Unlock Access 2 | . . . . . . . 1 . . 1 . Unauthorized Hacks 3 | . 2 . 1 . . . . . . . . Terminals 3 | . 2 . 1 . . . . . . . . Operators 3 | . 2 . 1 . . . . . . . . Fabricators . | . . . . . . . . . . . . Repair Stations . | . . . . . . . . . . . . Recycling Units . | . . . . . . . . . . . . Scanalyzers . | . . . . . . . . . . . . Garrison Access . | . . . . . . . . . . . . Data Cores Recovered 1 | . . . . . . . . . 1 . . Used . | . . . . . . . . . . . . Hacking Detections 20 | . 4 . 4 . . . 2 1 3 5 1 Full Trace Events 3 | . 1 . . . . . . . 1 1 . Feedback Events 1 | . . . . . . . . . 1 . . Corruption 1 | . . . . . . . . . 1 . . Feedback Blocked . | . . . . . . . . . . . . Robot Schematics Acquired . | . . . . . . . . . . . . Robots Built . | . . . . . . . . . . . . Authchips . | . . . . . . . . . . . . Time . | . . . . . . . . . . . . Total Robot Build Rating . | . . . . . . . . . . . . Part Schematics Acquired . | . . . . . . . . . . . . Parts Built . | . . . . . . . . . . . . Authchips . | . . . . . . . . . . . . Time . | . . . . . . . . . . . . Total Part Build Rating . | . . . . . . . . . . . . Parts Repaired . | . . . . . . . . . . . . Time . | . . . . . . . . . . . . Parts Recycled . | . . . . . . . . . . . . Recycled Matter . | . . . . . . . . . . . . Retrieved Matter . | . . . . . . . . . . . . Retrieved Components . | . . . . . . . . . . . . Parts Scanalyzed 1 | . . . . . . . . . 1 . . Part Schematics Acquired . | . . . . . . . . . . . . Parts Damaged . | . . . . . . . . . . . . Bothacking | -11 -10 -10 -9 -9 -9 -8 -8 -8 -8 -7 -7 ------------ Run | Yrd Mat Min Mat Min Exi Min Mat Gar Mat Fac Gar Used RIF Installer 2 | . . . . . . . . 2 . . . Watcher Feeds 1 | . . . . . . . . 1 . . . Robots Hacked . | . . . . . . . . . . . . Non-combat . | . . . . . . . . . . . . Combat . | . . . . . . . . . . . . Robot Hacks Applied . | . . . . . . . . . . . . Relay Couplers Released 10 | . . . . . . . . 7 . . 3 Machine Destruction 10 | . . . . . . . . 7 . . 3 Attached 3 | . . . . . . . . 1 . . 2 Fabnet Peak Effective % . | . . . . . . . . . . . . Robots Rewired . | . . . . . . . . . . . . Allies Hacked . | . . . . . . . . . . . . Hacks Repelled . | . . . . . . . . . . . . Allies | -11 -10 -10 -9 -9 -9 -8 -8 -8 -8 -7 -7 -------- Run | Yrd Mat Min Mat Min Exi Min Mat Gar Mat Fac Gar Total Allies 5 | . . . . . . . . . . 3 2 Largest Group 3 | . . . . . . . . . . 3 2 Highest-Rated Group 142 | . . . . . . . . . . 93 142 Highest-Rated Ally 80 | . . . . . . . . . . 31 80 Total Orders . | . . . . . . . . . . . . Ally Attacks 39 | . . . . . . . . . . 9 30 Total Damage 1727 | . . . . . . . . . . 207 1520 Kills 10 | . . . . . . . . . . 2 8 Allies Corrupted 1 | . . . . . . . . . . . 1 Allies Melted . | . . . . . . . . . . . . Intel | -11 -10 -10 -9 -9 -9 -8 -8 -8 -8 -7 -7 ------- Run | Yrd Mat Min Mat Min Exi Min Mat Gar Mat Fac Gar Robot Analysis Total . | . . . . . . . . . . . . Derelict Logs Recovered 1 | . . 1 . . . . . . . . . Drone Launches . | . . . . . . . . . . . . Drone Recoveries . | . . . . . . . . . . . . Exploration | -11 -10 -10 -9 -9 -9 -8 -8 -8 -8 -7 -7 ------------- Run | Yrd Mat Min Mat Min Exi Min Mat Gar Mat Fac Gar Turns Passed 7932 | 4 1427 124 825 90 273 50 158 1194 1441 1611 735 Spaces Moved 3540 | 1 790 78 413 59 223 29 102 537 504 570 234 Core 18 | . . . . . . . . . . . 18 Treads 2485 | . 516 78 91 . . . . 510 504 570 216 Legs 1037 | 1 274 . 322 59 223 29 102 27 . . . Wheels . | . . . . . . . . . . . . Hover . | . . . . . . . . . . . . Flight . | . . . . . . . . . . . . Fastest Speed 50 | 120 120 160 120 120 120 120 120 120 240 243 50 Average Speed 185 | 120 146 160 166 120 120 120 120 180 242 243 218 Slowest Speed 243 | 120 160 160 240 120 120 120 120 240 243 243 243 Overloaded Moves . | . . . . . . . . . . . . Propulsion Burnouts . | . . . . . . . . . . . . Robots Hopped . | . . . . . . . . . . . . Cave-ins Triggered . | . . . . . . . . . . . . Exploration Rate (%) 33 | 2 97 18 40 21 62 19 9 38 46 22 26 Regions Visited 11 Branch Regions 4 Pre-discovered Areas . | . . . . . . . . . . . . Known Exits Taken 5 | . . . 1 . . 1 1 . 1 1 . Unknown Exits Taken 5 | 1 1 1 . 1 1 . . . . . . Scrap Searched 1 | . . 1 . . . . . . . . . Spaces Dug . | . . . . . . . . . . . . Terrain Destroyed 191 | . 25 . . . . . . 3 9 36 118 Melee . | . . . . . . . . . . . . Projectile 41 | . . . . . . . . 3 9 4 25 AOE 150 | . 25 . . . . . . . . 32 93 Terrain Rammed . | . . . . . . . . . . . . Walls Destroyed . | . . . . . . . . . . . . Machines Disabled . | . . . . . . . . . . . . Actions | -11 -10 -10 -9 -9 -9 -8 -8 -8 -8 -7 -7 --------- Run | Yrd Mat Min Mat Min Exi Min Mat Gar Mat Fac Gar Total 4625 | 4 928 77 500 72 228 33 137 733 727 796 390 Wait 659 | . 34 . 12 9 3 . 33 70 206 217 75 Move 3530 | . 789 77 412 58 222 28 102 536 503 569 234 Hop . | . . . . . . . . . . . . Pick Up 71 | . 15 . 19 1 1 . 1 22 8 3 1 Fast Attach . | . . . . . . . . . . . . Attach 62 | . 9 . 16 . . . 1 24 2 3 7 Detach 14 | . . . 2 . . . . 12 . . . Swap 5 | 1 . . 1 . 1 . . 1 . . 1 Drop 56 | 3 5 . 11 1 1 . . 19 8 2 6 Fire 212 | . 76 . 23 3 . 5 . 45 . 2 58 Melee . | . . . . . . . . . . . . Ram 2 | . . . . . . . . . . . 2 Kick 4 | . . . 4 . . . . . . . . Crush . | . . . . . . . . . . . . Escape Stasis 10 | . . . . . . . . 4 . . 6 Rewire . | . . . . . . . . . . . . Trap . | . . . . . . . . . . . . Miscellaneous . | . . . . . . . . . . . . Route ------- -11/Scrapyard -10/Materials (discovered 6 exits: *Mat x3 / [*Min x2] / [*Sub]) -10/Mines -9/Materials (discovered 5 exits: *Mat x3 / *Min x2) -9/Mines (discovered 3 exits: *Mat x2 / *Exi) -9/Exiles (discovered 2 exits: [*Min x2]) -8/Mines -8/Materials -8/Garrison -8/Materials (discovered 4 exits: *Fac x3 / [*Sto]) -7/Factory (discovered 5 exits: *Fac x4 / Gar) -7/Garrison History --------- Turn | Location | Event 5 | -11/Scrapyard | Discovered new exit (range 0) 5 | -11/Scrapyard | Entered Materials 203 | -10/Materials | Discovered new exit (range 16) 310 | -10/Materials | Build established: Mutant 360 | -10/Materials | Discovered new exit (range 7) 473 | -10/Materials | Core integrity fell below 50% 789 | -10/Materials | Discovered new exit (range 7) 888 | -10/Materials | Core integrity fell below 20% 1013 | -10/Materials | Discovered new exit (range 13) 1082 | -10/Materials | Discovered new exit (range 10) 1093 | -10/Materials | Discovered new exit (range 8) 1432 | -10/Materials | Entered Mines 1492 | -10/Mines | Learned Materials trap positions 1548 | -10/Mines | Discovered new exit (range 5) 1556 | -10/Mines | Entered Materials 1556 | -9/Materials | Evolved 2 slots: Propulsion x1, Weapon x1 1557 | -9/Materials | Loaded intel: 26 trap records 1808 | -9/Materials | Identified exit to Materials 1829 | -9/Materials | Identified exit to Mines 2090 | -9/Materials | Build established: Scavenger-Gunner 2381 | -9/Materials | Entered Mines 2408 | -9/Mines | Discovered exit to Materials (range 11) 2425 | -9/Mines | Received a Rocket Launcher from a helpful Derelict 2452 | -9/Mines | Discovered exit to Materials (range 10) 2465 | -9/Mines | Deemed a non-threat by the Exiles lab entrance 2467 | -9/Mines | Discovered new exit (range 5) 2471 | -9/Mines | Entered Exiles 2472 | -9/Exiles | Build established: Gunner 2489 | -9/Exiles | Discovered new exit (range 15) 2504 | -9/Exiles | Met 8R-AWN 2521 | -9/Exiles | Met EX-HEX 2560 | -9/Exiles | Met EX-BIN 2573 | -9/Exiles | Aligned with FarCom system 2575 | -9/Exiles | Given EX-Vault access code 2608 | -9/Exiles | Opened EX-Vault 2615 | -9/Exiles | Found Prototype Ballistic Cannon 2643 | -9/Exiles | Warned to stay clear of 0b10 Research branches 2686 | -9/Exiles | Met EX-DEC 2728 | -9/Exiles | Discovered new exit (range 15) 2744 | -9/Exiles | Left Exiles lab with AWS/Autocannon 2744 | -9/Exiles | Entered Mines 2779 | -8/Mines | Discovered exit to Materials (range 15) 2794 | -8/Mines | Entered Materials 2794 | -8/Materials | Evolved 2 slots: Utility x2 2952 | -8/Materials | Identified exit to Garrison 2952 | -8/Materials | Entered Garrison 2972 | -8/Garrison | Triggered checkpoint 2985 | -8/Garrison | Garrison Relay disabled 3001 | -8/Garrison | Identified AWS/Autocannon 3286 | -8/Garrison | Build established: Mutant 3476 | -8/Garrison | Triggered checkpoint 3577 | -8/Garrison | Discovered new exit (range 12) 3640 | -8/Garrison | Triggered checkpoint 3699 | -8/Garrison | Installed Relay Interface Framework 3777 | -8/Garrison | Expanded RIF knowledge: Watcher Feeds 3916 | -8/Garrison | Garrison Relay disabled 4146 | -8/Garrison | Entered Materials 4186 | -8/Materials | Discovered new exit (range 38) 4215 | -8/Materials | Build established: Bothacker-Skirmisher 4787 | -8/Materials | Identified exit to Factory 5587 | -8/Materials | Entered Factory 5587 | -7/Factory | Evolved 2 slots: Utility x1, Weapon x1 6311 | -7/Factory | Discovered new exit (range 25) 6740 | -7/Factory | Identified exit to Factory 6903 | -7/Factory | Identified exit to Garrison 7198 | -7/Factory | Entered Garrison 7207 | -7/Garrison | Found embedded Infiltrators 7282 | -7/Garrison | Triggered checkpoint 7311 | -7/Garrison | Garrison Relay disabled 7503 | -7/Garrison | Assembled breached garrison interior 7729 | -7/Garrison | Destroyed 50 combat bots 7836 | -7/Garrison | Destroyed 13 combat bots 7914 | -7/Garrison | System corruption reached 10% 7919 | -7/Garrison | Core integrity fell below 50% 7929 | -7/Garrison | Core integrity fell below 20% 7933 | -7/Garrison | Destroyed by as-57622 with Assembled Blade Last Messages --------------- 07917_ Acquired 21 matter. 07919_ Slammed into as-75417. 07920_ Acquired 2 matter. 07922_ as-74107 shuts down. 07926_ System corrupted: Component data lost. 07927_ Triggered Stasis Trap. 07927_ A bubble of rippling energy engulfs the area. 07927_ Field strength at 94. 07927_ Field strength at 85. 07928_ as-57622 triggered Stasis Trap. 07928_ A bubble of rippling energy engulfs the area. 07928_ Field strength at 93. 07928_ Field strength at 57. 07929_ Field strength at 43. 07930_ Field strength at 37. 07931_ Field strength at 18. 07932_ Field strength at 2. 07932_ Stasis field depleted. Map ----- +----------------------------------------------------+ | ?????????????????????????????????????????????????? | | ?????????????????????????????????????????????????? | | ?????????????????????????????????????????????????? | | ?????????????????????????????????????????????????? | | ?????????????????????????????????????????????????? | | ??????????????????????????????????????###????????? | | ?????????????????????????????????????## #????????? | | ?????????????????????????????????????# #????????? | | ?????????????????????????????????????# ##????????? | | ?????????????????????????????????????# ######????? | | ?????????????????????????????????????# ## #????? | | ????????????????????????????????######+## #????? | | ????????????????????????????????# #????? | | ????????????????????????????????# #????? | | ????????????????????????????????# ##########????? | | ????????????????????????????????# #?????????????? | | ????+????+??????????????????????# #?????????????? | | ????????????????????????????????# #?????????????? | | ????????????????????????????????# #?????????????? | | ????????????????????????????????# #?????????????? | | ????????????????????????????????# #?????????????? | | ????????????????????????????????# ########??????? | | ????????????????????????????????# ##"!"""#??????? | | ????????????+????????????????#### ###!!*#??????? | | ?????????????????????#########a # ## ######## | | ?????????????????????# @aa a =!=! | | ?????????????????????+ aaaaaaa * [**! | | ?????????????????????# ###+### #=[%#####+### | | ???????????+????????## # # #### # %%+???+ #?? | | ???????????????????## # # #?## # #####???# #?? | | ?+??+?????????##?#?## % #### #???????# #?? | | ???????????# #" # ?# # %%% #???????# #?? | | ??????????## " ## # #%%% ##??????## ### | | ??????????#" "" #%#= #???????#!=!!! | | ??????+???#% % *! #???????#![!!! | | ????????? % % % == #???????##%### | | ????????? ! %% == [ #???????#%=#?? | | ??????????#%=%" % # # ###???????#%%#?? | | ??????????# % ## # #######= ###???????####?? | | ???????????% % %]###### #??????????????? | | ???????????% % % % =#??????????????? | | ??????????? % ########??????????????? | | ???????????? % #?????????????????????? | | ???????????? # % # %###?????????????????????? | | ???????????? ?# # ????????????????????????? | | ?????????????# ??????????+?????????????? | | ????????????? % ??????????+?????????????? | | ?????????????? # ????????????????????????? | | ??????????????##= #####????????????????????????? | | ???????????????#%##%?????????????????????????????? | +----------------------------------------------------+ Best States ------------- Heat Dissipation 53 Energy Generation 18 Energy Capacity 310 Matter Stores 300 Matter Capacity 300 Sight Range 16 Terrain Scan Density 10 Armor Coverage 225 Evasion (%) 55 Recoil Reduction 3 Offensive Hacking 10 Relay Coupler Types 1 Relay Coupler Value 29 Item Schematics ----------------- None Robot Schematics ------------------ None Fabricated ------------ Nothing Alien Tech Used ----------------- None Achievements -------------- Boltbath Killing Spree Challenges ------------ None Game ------ Seed GaussActiveWings Manual? 0 Play Time 00:47:07 Cumulative 81.7 hours Start 2024.04.17 @ 23:48:01 End 2024.04.18 @ 00:36:14 Sessions 1 Manual Loads 0 Difficulty Rogue Special Mode None Game No. 75 Rogue 75 Adventurer 0 Explorer 0 Win Type - Total 0 Types 0/0/0/0/0/0/0/0/0 Lore% 42 Gallery% 53 Achievement% 33 Wizard Run 0 Options --------- Layout 1 ASCII 0 Keyboard 0 Movement Numpad Keybinds 0 Fullscreen 1 Font 24/Smallcaps Map View 50x35 Zoom Use 0% Tactical HUD 1 Map Filters NONE Filters NONE Steam 1 RUN: 60f617be-dd5f-47d1-9fb2-7c6c020ba3a4